Cogmind - Beta 13 @@@ ROGUE MODE // 2024.04.30 @ 13:11:23 Player: WarMechanic Result: Destroyed by G-34 Mercenary with Small Laser Performance ------------- Evolutions (0) 0 Regions Visited (1) 200 Robots Destroyed (24) 120 Value Destroyed (597) 597 Prototype IDs (0) 0 Alien Tech Used (0) 0 Bonus (0) 0 TOTAL SCORE: 917 Bonus ------- None Cogmind --------- Core Integrity 0/250 Matter 251/300 Energy 250/250 System Corruption 1% Temperature Cool (6) Movement Treading (160) Location -10/Materials Parts ------- > --- POWER (1) -------- Ion Engine > --- PROPULSION (2) --- Light Treads Aluminum Leg > --- UTILITY (2) ------ Seismic Detector Hacking Suite > --- WEAPON (2) ------- Assault Rifle > --- INVENTORY (5) ---- Aluminum Leg Structural Scanner Signal Interpreter Datajack Peak State ------------ > --- POWER ------------ Ion Engine > --- PROPULSION ------- Light Treads Aluminum Leg > --- UTILITY ---------- Seismic Detector Hacking Suite > --- WEAPON ----------- Assault Rifle Assault Rifle > --- INVENTORY -------- Aluminum Leg Structural Scanner Signal Interpreter Assault Rifle Datajack [Rating: 9] Favorites ----------- Power Ion Engine Engine Ion Engine Propulsion Aluminum Leg Treads Light Treads Leg Aluminum Leg Utility Seismic Detector Device Seismic Detector Hackware Hacking Suite Weapon Assault Rifle Energy Gun EM Pulse Gun Ballistic Gun Assault Rifle Launcher Grenade Launcher Special Weapon Mining Laser Build | -11 -10 ------- Run | Yrd Mat Slots Evolved . | . . Power . | . . Propulsion . | . . Utility . | . . Weapon . | . . Parts Attached 32 | 5 27 Power 5 | 1 4 Engine 5 | 1 4 Core . | . . Reactor . | . . Propulsion 8 | 2 6 Treads 1 | . 1 Leg 7 | 2 5 Wheel . | . . Hover . | . . Flight . | . . Utility 6 | . 6 Device 5 | . 5 Storage . | . . Processor . | . . Hackware 1 | . 1 Protection . | . . Artifact . | . . Weapon 13 | 2 11 Energy Gun 3 | 1 2 Energy Cannon . | . . Ballistic Gun 7 | 1 6 Ballistic Cannon . | . . Launcher 2 | . 2 Special Weapon 1 | . 1 Impact Weapon . | . . Slashing Weapon . | . . Piercing Weapon . | . . Special Melee Weapon . | . . Unidentified Prototypes . | . . Parts Lost 8 | . 8 Power . | . . Propulsion 2 | . 2 Utility 1 | . 1 Weapon 5 | . 5 Highest Loss Streak 4 | . 4 To Critical Strikes . | . . Average Slot Usage (%) 89 | . 89 Engine 14 | . 14 Treads 6 | . 6 Leg 21 | . 21 Device 14 | . 14 Hackware 4 | . 4 Energy Gun 3 | . 3 Ballistic Gun 21 | . 21 Naked Turns . | . . Heaviest Build 11 | 6 11 Greatest Support 20 | 20 20 Greatest Overweight (x) . | . . Average Overweight (x) . | . . Largest Inventory Capacity 5 | 5 5 Average Capacity 5 | 5 5 Most Carried 5 | 5 5 Average Carried 4 | 2 4 Final Capacity 5 | 5 5 Final Carried 4 | 2 4 Class Distribution -------------------- 100% | Mutant Dominant Class ---------------- Mutant | -10/Materials Resources | -11 -10 ----------- Run | Yrd Mat Matter Collected 731 | 250 481 Remotely . | . . Salvage Created 856 | 102 754 Parts 45 | 2 43 Haulers Intercepted . | . . Recyclers Shooed 1 | . 1 Parts Field Recycled . | . . Retrieved Matter . | . . Parts Self-Destructed . | . . Prevented . | . . Kills | -11 -10 ------- Run | Yrd Mat Combat Hostiles Destroyed 17 | 1 16 Guns 12 | . 12 AOE 4 | . 4 Classes Destroyed 7 | 3 4 Worker 1 | 1 . Tunneler 1 | 1 . Recycler 2 | . 2 Mechanic 1 | . 1 Operator 2 | . 2 Swarmer 3 | . 3 Grunt 14 | 1 13 Best Kill Streak 7 | 1 7 Combat Bots Only 6 | 1 6 Max Kills in Single Turn 3 | 1 3 Gunslinging . | . . Exploded 3 | . 3 Melee . | . . Uniques/NPCs Destroyed . | . . Combat | -11 -10 -------- Run | Yrd Mat Hostile Shots Fired 138 | 10 128 Missed 37 | 3 34 Damage Taken 1236 | 76 1160 Core 254 | 32 222 Absorbed by Shields . | . . Core Remaining (%) 87 | 87 . Volleys Fired 101 | 24 77 Largest 2 | 1 2 Hottest 100 | 40 100 Shots Fired 146 | 24 122 Gun 141 | 24 117 Cannon . | . . Launcher 3 | . 3 Special 2 | . 2 Kinetic 95 | . 95 Thermal 2 | . 2 Explosive 3 | . 3 Electromagnetic 46 | 24 22 Robot Hit Streak 9 | 3 9 Robot Miss Streak 4 | 4 2 Penetration Max . | . . Secondary Targets 1 | . 1 Max Gunslinging Chain 1 | . 1 Shots Hit Robots 98 | 15 83 Core Hits 39 | 2 37 Critical Kills . | . . Critical Parts Destroyed 1 | . 1 Critical Strikes 3 | 1 2 Destroy 1 | . 1 Corrupt 2 | 1 1 Melee Attacks . | . . Impact . | . . Slashing . | . . Piercing . | . . Sneak Attacks . | . . Combat Hostiles . | . . Follow-up Attacks . | . . Damage Inflicted 1572 | 206 1366 Guns 1286 | 206 1080 Cannons . | . . Explosions 265 | . 265 Melee . | . . Ramming 21 | . 21 Kinetic 853 | . 853 Thermal . | . . Explosive 265 | . 265 Electromagnetic 433 | 206 227 Impact . | . . Slashing . | . . Piercing . | . . Highest Corruption 1 | . 1 Average Corruption 1 | . 1 Corruption Purged . | . . Corruption Blocked . | . . Effects 4 | . 4 Matter Fused 1 | . 1 Heat Flow Errors 1 | . 1 Energy Discharges 1 | . 1 Misfires 1 | . 1 Overload Shots . | . . Overflow Damage 16 | . 16 Projectiles . | . . Explosions 16 | . 16 Melee . | . . Knockbacks . | . . Impact . | . . Kinetic . | . . Secondary . | . . Self-Inflicted Damage 60 | . 60 Shots 2 | . 2 Rammed 6 | . 6 Targets Rammed 6 | . 6 Kicked . | . . Crushed . | . . Highest Temperature 251 | 42 251 Average Temperature 50 | 22 58 Received Heat Transfer 564 | 42 522 Siege Activations . | . . Robots Corrupted 2 | 1 1 Combat Hostiles 1 | 1 . Parts Fried 7 | 3 4 Impact Corruptions . | . . Robots Melted . | . . Combat Hostiles . | . . Parts Melted . | . . Heat Transferred . | . . Parts Sabotaged . | . . Parts Stolen . | . . Parts Stripped . | . . Power Chain Reactions . | . . Alert | -11 -10 ------- Run | Yrd Mat Peak Influence 221 | 30 221 Initial 19 | . 19 Average 94 | 13 104 Maximum Alert Level 1 | . 1 Low Security (%) 97 | 100 97 Level 1 2 | . 2 Level 2 . | . . Level 3 . | . . Level 4 . | . . Level 5 . | . . High Security . | . . Max Security . | . . Squads Dispatched 6 | . 6 Investigation 3 | . 3 Extermination . | . . Reinforcement 3 | . 3 Assault . | . . Garrison . | . . Intercept . | . . Searches Triggered . | . . Construction Impeded . | . . Haulers Reinforced . | . . Active Scanning Responses . | . . Cargo Convoy Interrupts . | . . Stealth | -11 -10 --------- Run | Yrd Mat Distress Signals 1 | . 1 Communications Jammed . | . . Distress Signals . | . . Times Spotted 33 | 1 32 Peak Tracking Total 6 | 1 6 Tactical Retreats . | . . Traps | -11 -10 ------- Run | Yrd Mat Traps Triggered 2 | . 2 Indirectly . | . . Trap Hack Attempts . | . . Triggered . | . . Disarmed . | . . Reprogrammed . | . . Reused . | . . Traps Extracted . | . . Installed . | . . Triggered . | . . Machines | -11 -10 ---------- Run | Yrd Mat Machines Disabled . | . . Max in Single Turn . | . . Machines Repaired . | . . Machines Dismantled . | . . Machines Sabotaged . | . . Overloaded Fab Kills . | . . Hacking | -11 -10 --------- Run | Yrd Mat Machines Accessed 7 | . 7 Terminals 5 | . 5 Fabricators . | . . Repair Stations 1 | . 1 Recycling Units 1 | . 1 Scanalyzers . | . . Garrison Access . | . . Total Hacks 26 | . 26 Successful 13 | . 13 Failed 13 | . 13 Catastrophic 2 | . 2 Database Lockouts . | . . Manual 20 | . 20 Terminals 19 | . 19 Fabricators . | . . Repair Stations 5 | . 5 Recycling Units 2 | . 2 Scanalyzers . | . . Garrison Access . | . . Terminal Hacks 9 | . 9 Part Schematic 6 | . 6 Terminal Index 1 | . 1 Locate Traps 1 | . 1 Maintenance Status 1 | . 1 Fabricator Hacks . | . . Repair Station Hacks 2 | . 2 Scan Component 2 | . 2 Recycling Unit Hacks 2 | . 2 Report Inventory 1 | . 1 Retrieve Components 1 | . 1 Scanalyzer . | . . Garrison Access Hacks . | . . Unauthorized Hacks . | . . Terminals . | . . Fabricators . | . . Repair Stations . | . . Recycling Units . | . . Scanalyzers . | . . Garrison Access . | . . Data Cores Recovered . | . . Used . | . . Hacking Detections 7 | . 7 Full Trace Events 6 | . 6 Feedback Events 1 | . 1 Corruption 1 | . 1 Feedback Blocked . | . . Robot Schematics Acquired . | . . Robots Built . | . . Authchips . | . . Time . | . . Total Robot Build Rating . | . . Part Schematics Acquired 6 | . 6 Parts Built . | . . Authchips . | . . Time . | . . Total Part Build Rating . | . . Parts Repaired . | . . Time . | . . Parts Recycled . | . . Recycled Matter . | . . Retrieved Matter . | . . Retrieved Components 1 | . 1 Parts Scanalyzed . | . . Part Schematics Acquired . | . . Parts Damaged . | . . Bothacking | -11 -10 ------------ Run | Yrd Mat Used RIF Installer . | . . Robots Hacked . | . . Non-combat . | . . Combat . | . . Robot Hacks Applied . | . . Relay Couplers Released . | . . Fabnet Peak Effective % . | . . Robots Rewired . | . . Allies Hacked . | . . Hacks Repelled . | . . Allies | -11 -10 -------- Run | Yrd Mat Total Allies . | . . Largest Group . | . . Highest-Rated Group . | . . Highest-Rated Ally . | . . Total Orders . | . . Ally Attacks . | . . Total Damage . | . . Kills . | . . Allies Corrupted . | . . Allies Melted . | . . Intel | -11 -10 ------- Run | Yrd Mat Robot Analysis Total . | . . Derelict Logs Recovered . | . . Drone Launches . | . . Drone Recoveries . | . . Exploration | -11 -10 ------------- Run | Yrd Mat Turns Passed 1457 | 161 1296 Spaces Moved 802 | 120 682 Core 60 | 60 . Treads 307 | . 307 Legs 435 | 60 375 Wheels . | . . Hover . | . . Flight . | . . Fastest Speed 50 | 50 120 Average Speed 130 | 85 138 Slowest Speed 160 | 120 160 Overloaded Moves . | . . Propulsion Burnouts . | . . Robots Hopped . | . . Cave-ins Triggered . | . . Exploration Rate (%) 42 | 6 78 Regions Visited 1 Branch Regions . Pre-discovered Areas . | . . Known Exits Taken . | . . Unknown Exits Taken 1 | 1 . Scrap Searched . | . . Spaces Dug 2 | . 2 Terrain Destroyed 18 | . 18 Melee . | . . Projectile 2 | . 2 AOE 16 | . 16 Terrain Rammed . | . . Walls Destroyed . | . . Machines Disabled . | . . Actions | -11 -10 --------- Run | Yrd Mat Total 1074 | 155 919 Wait 69 | . 69 Move 801 | 119 682 Hop . | . . Pick Up 40 | 7 33 Fast Attach 1 | . 1 Attach 21 | 5 16 Detach 2 | . 2 Swap 10 | . 10 Drop 23 | . 23 Fire 101 | 24 77 Melee . | . . Ram . | . . Kick . | . . Crush 6 | . 6 Escape Stasis . | . . Rewire . | . . Trap . | . . Miscellaneous . | . . Route ------- -11/Scrapyard -10/Materials (discovered 2 exits: [*Mat] / [*Min]) History --------- Turn | Location | Event 2 | -11/Scrapyard | Met Revision 17 65 | -11/Scrapyard | Discovered new exit (range 8) 162 | -11/Scrapyard | Entered Materials 347 | -10/Materials | Build established: Mutant 567 | -10/Materials | Lost 4 parts (1n1u2w) 570 | -10/Materials | Core integrity fell below 50% 670 | -10/Materials | Discovered new exit (range 5) 823 | -10/Materials | Core integrity fell below 20% 1025 | -10/Materials | Discovered new exit (range 9) 1458 | -10/Materials | Destroyed by G-34 Mercenary with Small Laser Last Messages --------------- 01408_ ALERT: Hostiles spotted, dispatching reinforcements to Terminal M002. 01415_ Connecting with Terminal... >>Schematic(Lgt. Treads) Downloading schematic... Lgt. Treads Rating: 1 Schematic downloaded. >>Schematic(Ion Engine) Downloading schematic... Ion Engine Rating: 1 Schematic downloaded. 01415_ ALERT: Suspicious activity at Terminal M005. Dispatching Investigation squad. 01428_ K-01 Serf collects debris. 01449_ Assault Rifle destroyed. 01452_ U-05 Engineer builds a Door. 01452_ Mining Laser destroyed. 01454_ U-05 Engineer destroyed. Map ----- +----------------------------------------------------+ | % % ##??????????## """""##??????? | | = ##??????????## """""##??????? | | ##??????????## """""##??????? | | ##??????????## """""##??????? | | ##??????????##= """""##??????? | | ^ ##??????????## """""##??????? | | """ ##??????????## ##??????? | | """"" ##??????????############??????? | | """"" ##??????????############??????? | | """"" ##????????????????????????????? | | """ ##????????????????????????????? | | ##????????????????????????????? | | ##????????????????????????????? | | """ ##????????????????????????????? | | """"" ##????????????????????????????? | | """"" ##????????????????????????????? | | """"" ##????########????????????????? | | """ ##????# #????????????????? | | #?????# T #????????????????? | | #?????# #????????????????? | | #?????# #????????????????? | | #?????# ! #????????????????? | | #####?#[ #????????????????? | | [ ###########/###########???????? | | = t kw #???????? | | = =@ g #???????? | | u %* ggg +???????? | | ################+## #???????? | | # ## #?????????????? ??g #???????? | | ?# #??????????????"" ??? #???????? | | ??# #??????????????"" ????????????? | | #??# #??????????????"" ????????????? | | ???# #????????????? #???????????? | | ???# #????????????? #???????????? | | ???# #?????????????? #???????????? | | ???# #???????????????? #???????????? | | ???# #????????????????##???????????? | | ???# #?????????????????????????????? | | ???# #?????????????????????????????? | | ???? ??????????????????????????????? | | ???????????????????????????????????????? | | ???????????????????????????????????????? | | ???????????????????????????????????????? | | ???????????????????????????????????????? | | ???????????????????????????????????????? | | ???????????????????????????????????????? | | ???????????????????????????????????????? | | ???????????????????????????????????????? | | ???????????????????????????????????????? | | ???????????????????????????????????????? | +----------------------------------------------------+ Best States ------------- Heat Dissipation 25 Energy Generation 10 Energy Capacity 250 Matter Stores 300 Matter Capacity 300 Sight Range 16 Terrain Scan Range 14 Terrain Scan Density 10 Evasion (%) 55 Recoil Reduction 1 Offensive Hacking 10 Item Schematics ----------------- Datajack | -10/Materials | Hacked Mining Claw | -10/Materials | Hacked ECM Suite | -10/Materials | Hacked EM Pulse Gun | -10/Materials | Hacked Lgt. Treads | -10/Materials | Hacked Ion Engine | -10/Materials | Hacked Robot Schematics ------------------ None Fabricated ------------ Nothing Alien Tech Used ----------------- None Achievements -------------- Power Corrupts root@ Challenges ------------ None Game ------ Seed TachyonServoMapper Manual? 0 Play Time 00:32:08 Cumulative 1.5 hours Start 2024.04.30 @ 12:38:48 End 2024.04.30 @ 13:11:23 Sessions 1 Manual Loads 0 Difficulty Rogue Special Mode None Game No. 2 Rogue 2 Adventurer 0 Explorer 0 Win Type - Total 0 Types 0/0/0/0/0/0/0/0/0 Lore% 0 Gallery% 3 Achievement% 3 Wizard Run 0 Options --------- Layout 0 ASCII 1 Keyboard 0 Movement Arrows Keybinds 0 Fullscreen 1 Font 18/SmallcapsGlow Map View 76x50 Zoom Use 0% Tactical HUD 1 Map Filters NONE Filters NONE Steam 1 RUN: 5dd6339a-fc46-4e5a-a6ad-b7be5e762e9b